bitfinex-derivatives/quotes_BTCF0:USTF0_20241226
["timestamp","ask_amount","ask_price","bid_price","bid_amount"]
[1735229013510,0.052109,96044.0,96041.0,0.1407]
[1735229013710,0.08663274,96051.0,96041.0,0.1407]
[1735229013912,0.08663274,96051.0,96020.0,0.08663274]
[1735229014108,0.05211,96042.0,96041.0,0.007]
[1735229014498,0.052106,96048.0,96041.0,0.007]
[1735229014701,0.08663274,96070.0,96042.0,0.003]
[1735229014904,0.052106,96050.0,96042.0,0.003]
[1735229015509,0.001,96042.0,96038.0,0.08663274]
[1735229015810,0.001,96042.0,96041.0,0.006]
[1735229016310,0.001,96042.0,96033.0,0.052114]
[1735229016311,0.052105,96051.0,96042.0,0.002]
[1735229017917,0.052105,96051.0,96041.0,0.005]
[1735229017918,0.052109,96044.0,96041.0,0.005]
[1735229018106,0.052109,96043.0,96041.0,0.007]
[1735229018707,0.052109,96043.0,96041.0,0.002]
[1735229018910,0.052109,96043.0,96022.0,0.1359]
[1735229019107,0.05212,96023.0,96021.0,0.00156206]
[1735229020016,0.052116,96030.0,96016.0,0.01184836]
[1735229020204,0.1369,96031.0,95997.0,0.18392859]
[1735229020400,0.16281667,96020.0,95997.0,0.18392859]
[1735229020604,0.047133,96000.0,95997.0,0.18392859]
[1735229021412,0.045133,96000.0,95997.0,0.18392859]
[1735229021814,0.05213,96006.0,95996.0,0.00156251]
[1735229022214,0.05213,96006.0,95997.0,0.001]
[1735229022809,0.04713,96006.0,95997.0,0.001]
[1735229023206,0.052122,96019.0,95997.0,0.001]
[1735229023401,0.052129,96006.0,95997.0,0.003]
[1735229023603,0.052131,96003.0,95997.0,0.003]
[1735229024605,0.28693566,96030.0,95997.0,0.003]
[1735229024606,0.09289836,96025.0,95997.0,0.003]
[1735229024813,0.052123,96018.0,96000.0,0.16281667]
[1735229025008,0.052124,96016.0,96000.0,0.16281667]
[1735229025210,0.09289836,96025.0,95997.0,0.002]
[1735229025611,0.052127,96010.0,95997.0,0.002]
[1735229025819,0.052127,96010.0,95997.0,0.001]
[1735229026110,0.052127,96010.0,95997.0,0.002]
[1735229026310,0.052128,96008.0,95997.0,0.002]
[1735229026833,0.16281667,96020.0,95997.0,0.002]
[1735229027019,0.052133,95998.0,95997.0,0.002]
[1735229029115,0.052137,95991.0,95981.0,0.18392859]
[1735229029313,0.052137,95991.0,95977.0,0.1394]
[1735229029712,0.052138,95990.0,95977.0,0.1394]
[1735229029914,0.052139,95988.0,95983.0,0.01201088]
[1735229030217,0.16281667,96000.0,95983.0,9.888e-05]
[1735229030421,0.052141,95985.0,95983.0,0.00409888]
[1735229031627,0.052141,95985.0,95983.0,0.00609888]
[1735229032529,0.052141,95985.0,95983.0,0.00709888]
[1735229034714,0.052141,95985.0,95983.0,0.007]
[1735229036117,0.33756823,96000.0,95964.0,0.1452]
[1735229036317,0.052141,95984.0,95983.0,0.001]
[1735229037118,0.186741,95984.0,95964.0,0.1569705]
[1735229037325,0.052151,95965.0,95964.0,0.0137705]
[1735229038020,0.052151,95965.0,95964.0,0.0147705]
[1735229038619,0.052151,95965.0,95964.0,0.0127705]
[1735229039318,0.052151,95965.0,95964.0,0.0137705]
[1735229039519,0.06397256,95984.0,95964.0,0.0137705]
[1735229039721,0.052148,95972.0,95965.0,0.1389]
[1735229039915,0.052148,95971.0,95965.0,0.1389]
[1735229040123,0.06397256,95984.0,95965.0,0.1389]
[1735229040318,0.05215,95968.0,95965.0,0.1389]
[1735229040727,0.052151,95967.0,95965.0,0.1389]
[1735229041320,0.052141,95984.0,95965.0,0.1389]
[1735229041519,0.052141,95984.0,95970.0,0.0869713]
[1735229042229,0.09289836,95998.0,95970.0,0.3869713]
[1735229042421,0.09289836,95998.0,95980.0,0.0869713]
[1735229042621,0.09289836,95998.0,95970.0,0.3899713]
[1735229042824,0.09289836,95998.0,95980.0,0.0869713]
[1735229043023,0.09289836,95998.0,95988.0,0.0869713]
[1735229043219,0.12411899,96003.0,95989.0,0.2928]
[1735229043422,0.00156292,96010.0,95989.0,0.482638]
[1735229043626,0.001,95998.0,95989.0,0.482638]
[1735229043824,0.001,95998.0,95989.0,0.4305]
[1735229044026,0.00156292,96010.0,95995.0,0.052135]
[1735229044230,0.00156292,96010.0,96000.0,0.16288105]
[1735229044832,0.052121,96021.0,96000.0,0.16288105]
[1735229045826,0.002,96010.0,96000.0,0.16288105]
[1735229046028,0.002,96010.0,96000.0,0.16788105]
[1735229046329,0.052123,96017.0,96000.0,0.005]
[1735229046535,0.052123,96017.0,96000.0,0.014]
[1735229047931,0.052123,96017.0,96000.0,0.005]
[1735229048130,0.001,96010.0,96000.0,0.17688105]
[1735229048337,0.001,96010.0,96000.0,0.18834516]
[1735229048538,0.12411899,96039.0,96000.0,0.17834516]
[1735229048740,0.001,96017.0,96000.0,0.18734516]
[1735229049133,0.052123,96018.0,96000.0,0.17834516]
[1735229049338,0.001,96010.0,96000.0,0.18734516]
[1735229049534,0.001,96010.0,96004.0,0.05213]
[1735229049730,0.052115,96032.0,96000.0,0.64122621]
[1735229049929,0.001,96017.0,96015.0,0.16288105]
[1735229050135,0.12411899,96033.0,96017.0,0.052123]
[1735229050429,0.12411899,96033.0,96022.0,0.16288105]
[1735229051431,0.00156247,96041.0,96025.0,0.052118]
[1735229051632,0.00156247,96041.0,96030.0,0.16288105]
[1735229052730,0.00256247,96041.0,96030.0,0.16288105]
[1735229053338,0.00356247,96041.0,96030.0,0.16288105]
[1735229055534,0.00356247,96041.0,96026.0,0.1392]
[1735229055735,0.16288105,96040.0,96022.0,0.01171532]
[1735229056044,0.1407,96039.0,96016.0,0.18392859]
[1735229056341,0.052123,96017.0,96016.0,0.1959411]
[1735229056539,0.052127,96010.0,96009.0,0.18392859]
[1735229057636,0.052129,96006.0,96003.0,0.0115384]
[1735229059943,0.052129,96006.0,96005.0,0.00106356]
[1735229060751,0.052129,96006.0,96005.0,0.00206356]
[1735229061347,0.16288105,96030.0,96005.0,0.01388793]
[1735229061549,0.052126,96013.0,96005.0,0.00206356]
[1735229063743,0.052126,96013.0,96005.0,0.00306356]
[1735229064745,0.052126,96013.0,96005.0,0.00106356]
[1735229064953,0.052126,96013.0,96005.0,0.00406356]
[1735229065347,0.052126,96012.0,96005.0,0.00106356]
[1735229065543,0.052126,96012.0,96005.0,0.00206356]
[1735229065741,0.1488,96030.0,96006.0,0.1386]
[1735229066044,0.05212,96024.0,96007.0,0.189628]
[1735229066447,0.05212,96024.0,96008.0,0.14]
[1735229067850,0.27638303,96039.0,96008.0,0.14]
[1735229067851,0.16288105,96030.0,96008.0,0.14]
[1735229068252,0.15229192,96039.0,96010.0,0.08687571]
[1735229068455,0.12409111,96050.0,96008.0,0.14]
[1735229068456,0.052112,96038.0,96020.0,0.08687571]
[1735229068657,0.21096682,96050.0,96020.0,0.08687571]
[1735229068850,0.12409111,96043.0,96021.0,0.052121]
[1735229069154,0.052111,96040.0,96020.0,0.08687571]
[1735229069354,0.08687571,96040.0,96010.0,0.08687571]
[1735229069553,0.052115,96032.0,96010.0,0.08687571]
[1735229069746,0.052115,96032.0,96010.0,0.38687571]
[1735229069957,0.052115,96032.0,96010.0,0.08687571]
[1735229070257,0.052115,96032.0,96010.0,0.052127]
[1735229070446,0.052115,96032.0,96017.0,0.18450683]
[1735229070844,0.052112,96038.0,96017.0,0.18450683]
[1735229071052,0.16284451,96050.0,96017.0,0.18450683]
[1735229071254,0.052113,96037.0,96020.0,0.002]
[1735229071966,0.052108,96045.0,96024.0,0.052119]
[1735229072463,0.052108,96045.0,96020.0,0.16284451]
[1735229072760,0.052108,96045.0,96021.0,0.18450683]
[1735229073949,0.16284451,96050.0,96021.0,0.18450683]
[1735229074151,0.052112,96037.0,96027.0,0.18450683]
[1735229075163,0.00256247,96041.0,96027.0,0.18450683]
[1735229075365,0.12409111,96052.0,96031.0,0.16284451]
[1735229075562,0.12409111,96052.0,96039.0,0.16284451]
[1735229076659,0.12409111,96052.0,96041.0,0.18450683]
[1735229076863,0.16284451,96060.0,96041.0,0.18450683]
[1735229077062,0.001562,96072.0,96041.0,0.18450683]
[1735229077264,0.16284451,96070.0,96041.0,0.18450683]
[1735229077465,0.21493951,96070.0,96041.0,0.18450683]
[1735229077665,0.002,96052.0,96041.0,0.18450683]
[1735229078058,0.002,96052.0,96037.0,0.19584596]
[1735229078259,0.001562,96072.0,96037.0,0.19584596]
[1735229078260,0.008562,96072.0,96041.0,0.001]
[1735229078459,0.003,96070.0,96042.0,0.052109]
[1735229078665,0.003,96070.0,96050.0,0.16284451]
[1735229078862,0.006,96052.0,96051.0,0.1445]
[1735229079263,0.008,96052.0,96051.0,0.1445]
[1735229079464,0.002,96052.0,96051.0,0.1445]
[1735229080263,0.007562,96072.0,96051.0,0.1445]
[1735229080572,0.007562,96072.0,96057.0,0.052101]
[1735229080771,0.007562,96072.0,96058.0,0.1421]
[1735229081165,0.001562,96072.0,96065.0,0.052097]
[1735229081364,0.001562,96072.0,96059.0,0.1401]
[1735229081668,0.001562,96072.0,96070.0,0.052094]
[1735229081867,0.015,96072.0,96071.0,0.052094]
[1735229082262,0.006,96072.0,96071.0,0.052094]
[1735229082465,0.015,96072.0,96071.0,0.052094]
[1735229082772,0.12409111,96085.0,96065.0,0.001]
[1735229082963,0.00156143,96096.0,96085.0,0.052086]
[1735229083269,0.00156143,96096.0,96066.0,0.052096]
[1735229083270,0.00156143,96096.0,96086.0,0.43714451]
[1735229083473,0.00156143,96096.0,96095.0,0.052081]
[1735229084073,0.12409111,96098.0,96097.0,0.05208]
[1735229084775,0.1,96100.0,96097.0,0.05208]
[1735229085075,0.003,96098.0,96095.0,0.001]
[1735229085373,0.003,96098.0,96097.0,0.001]
[1735229085969,0.003,96098.0,96089.0,0.052084]
[1735229086171,0.003,96098.0,96097.0,0.05308]
[1735229086473,0.103,96100.0,96097.0,0.05308]
[1735229086667,0.103,96100.0,96097.0,0.001]
[1735229086880,0.103,96100.0,96098.0,0.052079]
[1735229087571,0.1356,96136.0,96097.0,0.001]
[1735229087771,0.321452,96149.0,96110.0,0.16284451]
[1735229087972,0.2694,96149.0,96118.0,0.052068]
[1735229088275,0.28068806,96149.0,96111.0,0.4082]
[1735229088472,0.39349111,96149.0,96124.0,0.052065]
[1735229089463,0.001,96144.0,96130.0,0.16284451]
[1735229091281,0.2724,96149.0,96130.0,0.16284451]
[1735229091576,0.2724,96149.0,96130.0,0.16384451]
[1735229092264,0.2724,96149.0,96130.0,0.001]
[1735229092473,0.003,96144.0,96124.0,0.0112915]
[1735229092669,0.052055,96143.0,96130.0,0.001]
[1735229094679,0.052055,96143.0,96124.0,0.001]
[1735229095378,0.057055,96143.0,96124.0,0.001]
[1735229095780,0.057055,96143.0,96130.0,0.001]
[1735229095978,0.004,96143.0,96130.0,0.001]
[1735229096278,0.004,96143.0,96134.0,0.052059]
[1735229096583,0.004,96143.0,96135.0,0.1359]
[1735229096977,0.004,96143.0,96136.0,0.188758]
[1735229097681,0.005,96143.0,96136.0,0.188758]
[1735229098470,0.006,96143.0,96136.0,0.20021099]
[1735229098676,0.006,96143.0,96136.0,0.20121099]
[1735229099679,0.005,96143.0,96136.0,0.14915299]
[1735229099875,0.005,96143.0,96136.0,0.01245299]
[1735229100487,0.052058,96138.0,96136.0,0.01245299]
[1735229100887,0.052058,96138.0,96136.0,0.001]
[1735229101083,0.052061,96133.0,96132.0,0.01150113]
[1735229101381,0.052063,96128.0,96112.0,0.1398]
[1735229101895,0.052064,96127.0,96112.0,0.1398]
[1735229102091,0.1313,96137.0,96112.0,0.1398]
[1735229102092,0.16284451,96130.0,96112.0,0.0113233]
[1735229102277,0.4313,96137.0,96110.0,0.00156069]
[1735229102278,0.052067,96120.0,96110.0,0.00156069]
[1735229102476,0.16284451,96122.0,96110.0,0.00156069]
[1735229102883,0.16284451,96130.0,96110.0,0.00156069]
[1735229103081,0.052068,96119.0,96110.0,0.00156069]
[1735229103387,0.052068,96119.0,96110.0,0.01293214]
[1735229103589,0.052063,96129.0,96110.0,0.00156069]
[1735229103981,0.001,96128.0,96110.0,0.00156069]
[1735229104386,0.001,96128.0,96118.0,0.16284451]
[1735229104689,0.004,96133.0,96122.0,0.052066]
[1735229104894,0.0015608,96140.0,96122.0,0.052066]
[1735229105085,0.0015608,96140.0,96123.0,0.1407]
[1735229105282,0.001,96128.0,96123.0,0.4407]
[1735229105482,0.12409111,96152.0,96123.0,0.1407]
[1735229105674,0.12409111,96152.0,96128.0,0.052063]
[1735229105879,0.002,96133.0,96128.0,0.052063]
[1735229107486,0.002,96133.0,96128.0,0.053063]
[1735229107681,0.052051,96151.0,96128.0,0.053063]
[1735229107889,0.052052,96149.0,96128.0,0.001]
[1735229108484,0.002,96152.0,96128.0,0.001]
[1735229108485,0.16284451,96150.0,96128.0,0.001]
[1735229108791,0.003,96133.0,96128.0,0.001]
[1735229109489,0.052062,96130.0,96128.0,0.001]
[1735229109991,0.2326,96129.0,96128.0,0.001]
[1735229110184,0.05207,96116.0,96101.0,0.18450683]
[1735229110784,0.05207,96116.0,96110.0,0.0128834]
[1735229111087,0.052067,96121.0,96110.0,0.0128834]
[1735229112289,0.052069,96117.0,96110.0,0.0128834]
[1735229113489,0.001,96121.0,96110.0,0.0128834]
[1735229113889,0.001,96117.0,96110.0,0.0128834]
[1735229114997,0.17615511,96126.0,96110.0,0.0128834]
[1735229115186,0.001,96117.0,96110.0,0.0128834]
[1735229116388,0.052071,96114.0,96110.0,0.0128834]
[1735229116690,0.052071,96113.0,96110.0,0.0128834]
[1735229117296,0.052072,96112.0,96110.0,0.0128834]
[1735229117494,0.12509111,96126.0,96110.0,0.00156069]
[1735229117792,0.001,96117.0,96110.0,0.17579962]
[1735229117996,0.001,96117.0,96111.0,0.04172512]
[1735229118196,0.12409111,96115.0,96112.0,0.04172512]
[1735229118392,0.12409111,96115.0,96113.0,0.13562512]
[1735229118598,0.15511389,96124.0,96118.0,0.052063]
[1735229118795,0.15511389,96124.0,96121.0,0.052061]
[1735229118996,0.15511389,96124.0,96122.0,0.04172512]
[1735229119191,0.18613667,96132.0,96123.0,0.04172512]
[1735229119392,0.18613667,96132.0,96114.0,0.65424451]
[1735229119393,0.15554572,96147.0,96124.0,0.04172512]
[1735229119695,0.15554572,96147.0,96128.0,0.052057]
[1735229119884,0.15554572,96147.0,96129.0,0.04172512]
[1735229120088,0.15554572,96147.0,96130.0,0.04172512]
[1735229120284,0.15554572,96147.0,96131.0,0.04172512]
[1735229120489,0.15554572,96147.0,96132.0,0.04172512]
[1735229120694,0.15554572,96147.0,96122.0,0.16284451]
[1735229120695,0.15554572,96147.0,96133.0,0.04172512]
[1735229120895,0.001,96138.0,96136.0,0.18450683]
[1735229121098,0.001,96138.0,96137.0,0.04172512]
[1735229122297,0.001,96138.0,96137.0,0.14012512]
[1735229122604,0.005,96138.0,96137.0,0.14012512]
[1735229122996,0.004,96138.0,96137.0,0.14012512]
[1735229123693,0.004,96138.0,96137.0,0.14112512]
[1735229125095,0.00156069,96169.0,96142.0,0.05205]
[1735229125295,0.00156069,96169.0,96150.0,0.16284451]
[1735229125499,0.00156069,96169.0,96140.0,0.16284451]
[1735229125801,0.052039,96164.0,96141.0,0.04169089]
[1735229126002,0.052039,96164.0,96142.0,0.04169089]
[1735229126196,0.052039,96164.0,96143.0,0.04169089]
[1735229126494,0.052039,96164.0,96140.0,0.16284451]
[1735229126495,0.052039,96164.0,96144.0,0.04169089]
[1735229126700,0.052039,96164.0,96142.0,0.001]
[1735229126701,0.052039,96164.0,96145.0,0.04169089]
[1735229126901,0.052039,96164.0,96140.0,0.16284451]
[1735229127100,0.052039,96164.0,96141.0,0.22599343]
[1735229127304,0.052039,96164.0,96142.0,0.04169434]
[1735229127507,0.052039,96164.0,96143.0,0.001]
[1735229128304,0.054039,96164.0,96143.0,0.001]
[1735229128608,0.052041,96159.0,96143.0,0.001]
[1735229129502,0.052041,96159.0,96140.0,0.17443145]
[1735229129709,0.052038,96165.0,96140.0,0.16284451]
[1735229129895,0.052038,96165.0,96141.0,0.05205]
[1735229130096,0.0986,96168.0,96141.0,0.05205]
[1735229130302,0.052039,96163.0,96143.0,0.001]
[1735229130500,0.052039,96163.0,96150.0,0.16284451]
[1735229131207,0.00156069,96169.0,96150.0,0.16284451]
[1735229131208,0.052042,96168.0,96150.0,0.16284451]
[1735229131597,0.001,96165.0,96150.0,0.16284451]
[1735229131998,0.053043,96165.0,96143.0,0.053055]
[1735229132199,0.001,96165.0,96143.0,0.053055]
[1735229132397,0.052044,96163.0,96143.0,0.053055]
[1735229132803,0.052044,96163.0,96144.0,0.18429909]
[1735229133000,0.002,96168.0,96144.0,0.18429909]
[1735229133304,0.052048,96157.0,96144.0,0.18429909]
[1735229133498,0.052048,96157.0,96150.0,0.001]
[1735229134496,0.052048,96157.0,96144.0,0.001]
[1735229135509,0.0997,96156.0,96144.0,0.001]
[1735229135710,0.0978,96155.0,96144.0,0.001]
[1735229136209,0.0978,96155.0,96150.0,0.001]
[1735229136210,0.05205,96151.0,96150.0,0.001]
[1735229136412,0.052057,96139.0,96138.0,0.01153652]
[1735229136616,0.052057,96139.0,96137.0,0.18429909]
[1735229136805,0.08664984,96150.0,96130.0,0.18429909]
[1735229136806,0.052061,96131.0,96130.0,0.18429909]
[1735229137114,0.052061,96131.0,96130.0,0.19527824]
[1735229137313,0.052061,96131.0,96130.0,0.18429909]
[1735229138211,0.0112976,96142.0,96120.0,0.01147764]
[1735229138509,0.052064,96127.0,96110.0,0.16406568]
[1735229139210,0.052064,96127.0,96110.0,0.17541841]
[1735229139436,0.052064,96127.0,96110.0,0.22749141]
[1735229139914,0.052064,96127.0,96110.0,0.23149141]
[1735229140116,0.052064,96126.0,96110.0,0.23149141]
[1735229140509,0.052065,96125.0,96110.0,0.01691342]
[1735229140711,0.0984,96130.0,96110.0,0.01291342]
[1735229141019,0.052072,96112.0,96110.0,0.01691342]
[1735229141308,0.052072,96112.0,96110.0,0.00856069]
[1735229141515,0.0647,96111.0,96110.0,0.00856069]
[1735229141713,0.052073,96110.0,96108.0,0.09155978]
[1735229142110,0.0647,96111.0,96107.0,0.01115946]
[1735229142312,0.0647,96111.0,96092.0,0.24600911]
[1735229142502,0.052081,96095.0,96092.0,0.24600911]
[1735229143708,0.0647,96111.0,96092.0,0.24600911]
[1735229143906,0.001,96095.0,96092.0,0.25200911]
[1735229144102,0.001,96095.0,96092.0,0.006]
[1735229144302,0.052081,96094.0,96092.0,0.006]
[1735229144716,0.145281,96094.0,96092.0,0.006]
[1735229145208,0.145281,96094.0,96092.0,0.009]
[1735229146016,0.145281,96094.0,96092.0,0.004]
[1735229146504,0.052083,96090.0,96089.0,0.01103114]
[1735229146709,0.0952,96094.0,96087.0,0.00156107]
[1735229146909,0.0952,96094.0,96071.0,0.0627]
[1735229147111,0.16250499,96090.0,96071.0,0.0627]
[1735229147314,0.16250499,96090.0,96062.0,0.0643]
[1735229147315,0.0611,96089.0,96062.0,0.0643]
[1735229147516,0.0611,96089.0,96064.0,0.0627]
[1735229148014,0.05209,96079.0,96064.0,0.0627]
[1735229149114,0.05209,96079.0,96064.0,0.0677]
[1735229149303,0.05209,96079.0,96071.0,0.005]
[1735229149908,0.05309,96079.0,96064.0,0.0757]
[1735229150409,0.001,96079.0,96064.0,0.013]
[1735229150615,0.052097,96066.0,96064.0,0.013]
[1735229150810,0.052097,96066.0,96064.0,0.005]
[1735229151113,0.052098,96064.0,96063.0,0.15120911]
[1735229151319,0.052098,96064.0,96052.0,0.36901367]
[1735229151320,0.052101,96058.0,96057.0,0.21034151]
[1735229151619,0.052113,96036.0,96035.0,0.00052]
[1735229151808,0.052104,96053.0,96031.0,0.0611]
[1735229152117,0.052114,96034.0,96031.0,0.0611]
[1735229152317,0.052115,96032.0,96031.0,0.0611]
[1735229153017,0.052115,96032.0,96031.0,0.0661]
[1735229153219,0.052115,96032.0,96031.0,0.0701]
[1735229154714,0.052115,96032.0,96031.0,0.009]
[1735229154917,0.052115,96032.0,96031.0,0.007]
[1735229155605,0.052115,96032.0,96031.0,0.004]
[1735229155804,0.054115,96032.0,96031.0,0.004]
[1735229156115,0.052119,96025.0,96023.0,0.01144699]
[1735229156317,0.05212,96023.0,96020.0,0.00156202]
[1735229156619,0.052121,96022.0,96020.0,0.01261915]
[1735229156821,0.052121,96022.0,96020.0,0.00156202]
[1735229159114,0.053121,96022.0,96020.0,0.00156202]
[1735229161423,0.16250499,96060.0,96020.0,0.00156202]
[1735229161628,0.16250499,96030.0,96020.0,0.00156202]
[1735229161808,0.052121,96021.0,96020.0,0.00156202]
[1735229162209,0.052121,96021.0,96020.0,2e-08]
[1735229162413,0.052121,96021.0,96000.0,0.1]
[1735229162414,0.052131,96002.0,96000.0,0.1]
[1735229163017,0.052142,95983.0,95982.0,0.0629]
[1735229163422,0.052142,95983.0,95982.0,0.07439074]
[1735229163817,0.052135,95996.0,95982.0,0.07439074]
[1735229164013,0.052139,95989.0,95982.0,0.07439074]
[1735229164227,0.16250499,96000.0,95982.0,0.07439074]
[1735229164415,0.052137,95992.0,95983.0,0.06]
[1735229165115,0.16250499,96010.0,95983.0,0.06]
[1735229165325,0.046132,96001.0,95983.0,0.06]
[1735229165719,0.16250499,96010.0,95983.0,0.06]
[1735229165919,0.052133,96000.0,95983.0,0.064]
[1735229166122,0.052133,96000.0,95983.0,0.066]
[1735229166529,0.052133,96000.0,95983.0,0.07]
[1735229167022,0.052133,96000.0,95983.0,0.064]
[1735229167224,0.052133,96000.0,95983.0,0.068]
[1735229167624,0.052133,95999.0,95983.0,0.068]
[1735229167828,0.16250499,96000.0,95983.0,0.068]
[1735229168128,0.052141,95985.0,95983.0,0.068]
[1735229168720,0.052141,95985.0,95983.0,0.008]
[1735229168918,0.052141,95985.0,95983.0,0.006]
[1735229169627,0.052141,95985.0,95983.0,0.005]
[1735229169829,0.3,95985.0,95957.0,0.00156319]
[1735229170031,0.052155,95958.0,95957.0,0.00156319]
[1735229170226,0.051155,95958.0,95957.0,0.00156319]
[1735229171128,0.051155,95958.0,95331.0,0.12791553]
[1735229171129,0.051155,95958.0,95910.0,0.052181]
[1735229171430,0.001,95958.0,95921.0,0.1266]
[1735229171627,0.052169,95933.0,95921.0,0.1266]
[1735229171831,0.052164,95941.0,95921.0,0.1266]
[1735229172328,0.052166,95939.0,95921.0,0.1266]
[1735229172529,0.052163,95944.0,95921.0,0.1266]
[1735229173029,0.001,95958.0,95930.0,0.16250499]
[1735229173030,0.001,95933.0,95930.0,0.16250499]
[1735229173224,0.052159,95951.0,95930.0,0.16250499]
[1735229173422,0.052159,95951.0,95930.0,0.46250499]
[1735229173617,0.001,95958.0,95930.0,0.46250499]
[1735229173819,0.00156373,95967.0,95948.0,0.16250499]
[1735229174019,0.00156373,95967.0,95930.0,0.31100449]
[1735229174020,0.00156373,95967.0,95957.0,0.16250499]
[1735229174225,0.052154,95960.0,95949.0,0.1188]
[1735229174518,0.052155,95959.0,95950.0,0.16250499]
[1735229174720,0.001,95951.0,95950.0,0.16250499]
[1735229174936,0.052151,95966.0,95950.0,0.16250499]
[1735229175232,0.052152,95963.0,95950.0,0.16250499]
[1735229175528,0.052154,95960.0,95949.0,0.1188]
[1735229175826,0.052155,95960.0,95949.0,0.1188]
[1735229176824,0.053155,95960.0,95949.0,0.1188]
[1735229177025,0.053155,95960.0,95950.0,0.0596]
[1735229178431,0.052159,95951.0,95950.0,0.0596]
[1735229179034,0.052159,95951.0,95937.0,0.00156349]
[1735229179035,0.052163,95943.0,95937.0,0.00156349]
[1735229179223,0.052166,95938.0,95937.0,0.00156349]
[1735229179424,0.052166,95938.0,95937.0,0.01296164]
[1735229179825,0.052166,95938.0,95937.0,0.01139815]
[1735229180026,0.052159,95951.0,95931.0,0.0585]
[1735229180027,0.052169,95932.0,95931.0,0.0585]
[1735229180926,0.16250499,95941.0,95921.0,0.0596]
[1735229181229,0.001,95932.0,95921.0,0.0596]
[1735229182135,0.052172,95927.0,95921.0,0.0596]
[1735229183427,0.09235956,95946.0,95937.0,0.001]
[1735229183632,0.052166,95939.0,95937.0,0.001]
[1735229184034,0.09235956,95946.0,95937.0,0.001]
[1735229184234,0.052163,95944.0,95937.0,0.001]
[1735229184449,0.052159,95951.0,95938.0,0.0594]
[1735229184635,0.09235956,95955.0,95940.0,0.16250499]
[1735229184822,0.09235956,95955.0,95941.0,0.0611]
[1735229185227,0.052166,95938.0,95937.0,0.001]
[1735229185433,0.052168,95935.0,95922.0,0.1205]
[1735229185643,0.052164,95941.0,95922.0,0.1205]
[1735229185837,0.001,95946.0,95930.0,0.16250499]
[1735229186024,0.001,95946.0,95922.0,0.1205]
[1735229186225,0.052169,95934.0,95922.0,0.1205]
[1735229186631,0.052165,95940.0,95922.0,0.1205]
[1735229186837,0.052165,95940.0,95930.0,0.16250499]
[1735229187038,0.16250499,95940.0,95922.0,0.13151926]
[1735229187342,0.052174,95924.0,95922.0,0.07211926]
[1735229188031,0.052174,95924.0,95922.0,0.07511926]
[1735229188934,0.052174,95924.0,95922.0,0.07411926]
[1735229189630,0.053174,95924.0,95922.0,0.07411926]
[1735229190227,0.052174,95924.0,95922.0,0.07411926]
[1735229190538,0.053174,95924.0,95922.0,0.07411926]
[1735229190930,0.09235956,95934.0,95922.0,0.07411926]
[1735229191127,0.09235956,95934.0,95924.0,0.16250499]
[1735229191738,0.052167,95937.0,95922.0,0.07411926]
[1735229192337,0.052167,95937.0,95922.0,0.07211926]
[1735229192640,0.052168,95934.0,95922.0,0.07211926]
[1735229192940,0.052168,95934.0,95924.0,0.001]
[1735229193637,0.001,95937.0,95922.0,0.07711926]
[1735229194137,0.052171,95929.0,95924.0,0.002]
[1735229194344,0.052172,95928.0,95924.0,0.002]
[1735229194834,0.052172,95928.0,95924.0,0.004]
[1735229195645,0.052172,95928.0,95924.0,0.002]
[1735229196238,0.052172,95928.0,95924.0,0.001]
[1735229196645,0.052172,95928.0,95924.0,0.002]
[1735229197040,0.052173,95926.0,95924.0,0.002]
[1735229197641,0.09235956,95933.0,95924.0,0.002]
[1735229198154,0.09235956,95933.0,95925.0,0.04190483]
[1735229198344,0.14452856,95933.0,95924.0,0.002]
[1735229198744,0.052169,95932.0,95924.0,0.002]
[1735229199045,0.09235956,95931.0,95924.0,0.002]
[1735229199246,0.09235956,95931.0,95924.0,0.001]
[1735229199455,0.002,95926.0,95921.0,0.0596]
[1735229199634,0.002,95926.0,95922.0,0.04193803]
[1735229199838,0.09235956,95931.0,95923.0,0.04193803]
[1735229200145,0.09235956,95925.0,95924.0,0.001]
[1735229200341,0.09235956,95925.0,95924.0,0.002]
[1735229200648,0.09235956,95925.0,95924.0,0.001]
[1735229201549,0.12381452,95927.0,95924.0,0.001]
[1735229201944,0.12381452,95927.0,95923.0,0.001]
[1735229202536,0.052173,95925.0,95923.0,0.001]
[1735229202745,0.052174,95923.0,95921.0,0.0606]
[1735229203248,0.052176,95920.0,95900.0,0.1]
[1735229203548,0.052176,95919.0,95911.0,0.04205378]
[1735229203750,0.16250499,95920.0,95902.0,0.0585]
[1735229204048,0.052182,95910.0,95908.0,0.01794988]
[1735229204642,0.052186,95902.0,95901.0,0.00156385]
[1735229204847,0.05207778,95902.0,95900.0,0.1]
[1735229205043,0.05107778,95902.0,95900.0,0.1]
[1735229205247,0.04907778,95902.0,95900.0,0.1]
[1735229206055,0.04907778,95902.0,95900.0,0.101]
[1735229207050,0.04907778,95902.0,95900.0,0.1]
[1735229207447,0.06695605,95902.0,95900.0,0.1]
[1735229207954,1.663465,95910.0,95885.0,0.0567]
[1735229207955,0.05074219,95901.0,95885.0,0.0567]
[1735229208147,0.05074219,95901.0,95890.0,0.16250499]
[1735229208348,0.05074219,95901.0,95891.0,0.0564]
[1735229208651,0.10292819,95901.0,95891.0,0.0564]
[1735229209155,0.052187,95900.0,95891.0,0.0564]
[1735229209354,0.052187,95899.0,95891.0,0.0564]
[1735229209757,0.052188,95898.0,95891.0,0.0564]
[1735229210953,0.09353254,95901.0,95891.0,0.0564]
[1735229210954,0.052189,95896.0,95891.0,0.0564]
[1735229211255,0.052189,95896.0,95891.0,0.0574]
[1735229211860,0.002,95898.0,95891.0,0.0574]